[Event "Titled Tuesday Blitz May 17 Early 2022"]
[White "Piesik, Piotr"]
[Black "Grischuk, Alexander"]
[WhiteFideId "1136194"]
[BlackFideId "4126025"]
[WhiteElo "2190"]
[BlackElo "2762"]
[Result "0-1"]
[Round "02"]
[TimeControl "180+1"]
[Date "2022.05.17"]
[WhiteClock "0:00:02"]
[BlackClock "0:00:12"]

1. Nf3 {[%clk 0:03:00]}  Nf6 {[%clk 0:02:58]} 2. g3 {[%clk 0:02:56]}  c5 {[%clk 0:02:58]} 3. Bg2 {[%clk 0:02:55]}  Nc6 {[%clk 0:02:58]} 4. O-O {[%clk 0:02:55]}  e5 {[%clk 0:02:58]} 5. c4 {[%clk 0:02:53]}  d5 {[%clk 0:02:58]} 6. cxd5 {[%clk 0:02:53]}  Nxd5 {[%clk 0:02:59]} 7. Nc3 {[%clk 0:02:53]}  Be6 {[%clk 0:02:59]} 8. d3 {[%clk 0:02:50]}  Be7 {[%clk 0:02:59]} 9. Bd2 {[%clk 0:02:50]}  Nc7 {[%clk 0:02:54]} 10. Rc1 {[%clk 0:02:44]}  O-O {[%clk 0:02:53]} 11. a3 {[%clk 0:02:42]}  Rc8 {[%clk 0:02:51]} 12. Ne4 {[%clk 0:02:40]}  Na6 {[%clk 0:02:51]} 13. Qa4 {[%clk 0:02:35]}  f6 {[%clk 0:02:50]} 14. Be3 {[%clk 0:02:30]}  Qa5 {[%clk 0:02:36]} 15. Qxa5 {[%clk 0:02:09]}  Nxa5 {[%clk 0:02:37]} 16. Nfd2 {[%clk 0:02:03]}  b6 {[%clk 0:02:26]} 17. f4 {[%clk 0:01:56]}  Nc6 {[%clk 0:02:22]} 18. fxe5 {[%clk 0:01:33]}  Nxe5 {[%clk 0:02:20]} 19. Bf4 {[%clk 0:01:33]}  Ng6 {[%clk 0:02:10]} 20. Bd6 {[%clk 0:01:31]}  Rfd8 {[%clk 0:02:09]} 21. Bxe7 {[%clk 0:01:30]}  Nxe7 {[%clk 0:02:10]} 22. Nc3 {[%clk 0:01:08]}  Nc6 {[%clk 0:01:59]} 23. Bxc6 {[%clk 0:01:02]}  Rxc6 {[%clk 0:01:58]} 24. Nb5 {[%clk 0:01:01]}  Rd7 {[%clk 0:01:33]} 25. Ne4 {[%clk 0:00:54]}  Bd5 {[%clk 0:01:26]} 26. Nec3 {[%clk 0:00:51]}  Bb3 {[%clk 0:01:26]} 27. Ne4 {[%clk 0:00:51]}  Nb8 {[%clk 0:01:22]} 28. Rf4 {[%clk 0:00:42]}  Re6 {[%clk 0:01:20]} 29. Nbc3 {[%clk 0:00:38]}  Re5 {[%clk 0:01:12]} 30. Nd2 {[%clk 0:00:36]}  Bf7 {[%clk 0:01:12]} 31. Nc4 {[%clk 0:00:35]}  Re8 {[%clk 0:01:08]} 32. b4 {[%clk 0:00:33]}  cxb4 {[%clk 0:01:09]} 33. axb4 {[%clk 0:00:34]}  Nc6 {[%clk 0:01:10]} 34. b5 {[%clk 0:00:32]}  Nd4 {[%clk 0:01:10]} 35. Kf2 {[%clk 0:00:31]}  Bxc4 {[%clk 0:00:59]} 36. dxc4 {[%clk 0:00:31]}  Nb3 {[%clk 0:01:00]} 37. Rd1 {[%clk 0:00:30]}  Rxd1 {[%clk 0:00:59]} 38. Nxd1 {[%clk 0:00:31]}  Kf7 {[%clk 0:00:57]} 39. Ne3 {[%clk 0:00:29]}  Rc8 {[%clk 0:00:53]} 40. g4 {[%clk 0:00:22]}  Rc5 {[%clk 0:00:50]} 41. Re4 {[%clk 0:00:22]}  h5 {[%clk 0:00:45]} 42. h3 {[%clk 0:00:21]}  hxg4 {[%clk 0:00:45]} 43. hxg4 {[%clk 0:00:22]}  Na5 {[%clk 0:00:32]} 44. Ke1 {[%clk 0:00:20]}  Rc7 {[%clk 0:00:31]} 45. Kd2 {[%clk 0:00:19]}  Nb3+ {[%clk 0:00:27]} 46. Kc3 {[%clk 0:00:19]}  Nc5 {[%clk 0:00:28]} 47. Rd4 {[%clk 0:00:20]}  Re7 {[%clk 0:00:27]} 48. Nf5 {[%clk 0:00:17]}  Rxe2 {[%clk 0:00:27]} 49. Nd6+ {[%clk 0:00:11]}  Ke6 {[%clk 0:00:24]} 50. Nc8 {[%clk 0:00:11]}  Re3+ {[%clk 0:00:19]} 51. Kc2 {[%clk 0:00:11]}  Re4 {[%clk 0:00:18]} 52. Rxe4+ {[%clk 0:00:10]}  Nxe4 {[%clk 0:00:18]} 53. Nxa7 {[%clk 0:00:11]}  Kd7 {[%clk 0:00:13]} 54. Nc6 {[%clk 0:00:09]}  Nf2 {[%clk 0:00:14]} 55. g5 {[%clk 0:00:04]}  fxg5 {[%clk 0:00:13]} 56. Kd2 {[%clk 0:00:05]}  Ne4+ {[%clk 0:00:12]} 57. Ke3 {[%clk 0:00:05]}  Nd6 {[%clk 0:00:12]} 58. Kd4 {[%clk 0:00:02]}  Ke6 {[%clk 0:00:12]} 0-1


[Site "https://www.chess.com"]

[Event "Titled Tuesday Blitz May 17 Early 2022"]
[White "Sadhwani, Raunak"]
[Black "Sokolovsky, Yahli"]
[WhiteFideId "35093487"]
[BlackFideId "2820242"]
[WhiteElo "2616"]
[BlackElo "1770"]
[Result "1-0"]
[Round "02"]
[TimeControl "180+1"]
[Date "2022.05.17"]
[WhiteClock "0:00:16"]
[BlackClock "0:00:01"]

1. d4 {[%clk 0:03:00]}  d6 {[%clk 0:02:59]} 2. Nf3 {[%clk 0:03:01]}  g6 {[%clk 0:02:58]} 3. e4 {[%clk 0:03:01]}  Bg7 {[%clk 0:02:59]} 4. Nc3 {[%clk 0:03:02]}  a6 {[%clk 0:02:59]} 5. Be3 {[%clk 0:03:00]}  b5 {[%clk 0:03:00]} 6. Qd2 {[%clk 0:03:01]}  Bb7 {[%clk 0:03:00]} 7. Bd3 {[%clk 0:03:01]}  Nd7 {[%clk 0:02:59]} 8. Ne2 {[%clk 0:03:02]}  c5 {[%clk 0:02:59]} 9. c3 {[%clk 0:03:02]}  c4 {[%clk 0:02:46]} 10. Bc2 {[%clk 0:03:02]}  Ngf6 {[%clk 0:02:47]} 11. Ng3 {[%clk 0:03:01]}  O-O {[%clk 0:02:45]} 12. Bh6 {[%clk 0:02:58]}  e6 {[%clk 0:02:26]} 13. O-O {[%clk 0:02:53]}  Ne8 {[%clk 0:02:18]} 14. h4 {[%clk 0:02:45]}  f6 {[%clk 0:02:10]} 15. b3 {[%clk 0:02:43]}  d5 {[%clk 0:01:59]} 16. bxc4 {[%clk 0:02:40]}  dxc4 {[%clk 0:01:59]} 17. a4 {[%clk 0:02:32]}  Qe7 {[%clk 0:01:44]} 18. axb5 {[%clk 0:02:30]}  axb5 {[%clk 0:01:45]} 19. Rxa8 {[%clk 0:02:30]}  Bxa8 {[%clk 0:01:46]} 20. Ra1 {[%clk 0:02:31]}  Bb7 {[%clk 0:01:42]} 21. Ra7 {[%clk 0:02:28]}  Bxh6 {[%clk 0:01:34]} 22. Qxh6 {[%clk 0:02:28]}  Nb6 {[%clk 0:01:33]} 23. h5 {[%clk 0:02:16]}  Nc8 {[%clk 0:01:16]} 24. Ra5 {[%clk 0:01:33]}  g5 {[%clk 0:00:52]} 25. e5 {[%clk 0:01:33]}  Bxf3 {[%clk 0:00:38]} 26. gxf3 {[%clk 0:01:04]}  b4 {[%clk 0:00:19]} 27. cxb4 {[%clk 0:00:42]}  f5 {[%clk 0:00:19]} 28. d5 {[%clk 0:00:34]}  Ng7 {[%clk 0:00:12]} 29. d6 {[%clk 0:00:28]}  Qd8 {[%clk 0:00:11]} 30. Rc5 {[%clk 0:00:21]}  Nb6 {[%clk 0:00:11]} 31. Rc7 {[%clk 0:00:18]}  Nd7 {[%clk 0:00:11]} 32. Ne4 {[%clk 0:00:18]}  fxe4 {[%clk 0:00:01]} 33. Bxe4 {[%clk 0:00:19]}  Rf5 {[%clk 0:00:01]} 34. Bxf5 {[%clk 0:00:17]}  Nxf5 {[%clk 0:00:01]} 35. Qxe6+ {[%clk 0:00:16]} 1-0


[Site "https://www.chess.com"]

[Event "Titled Tuesday Blitz May 17 Early 2022"]
[White "Salem, A.R. Saleh"]
[Black "Zemlyanskii, Ivan"]
[WhiteFideId "9301348"]
[BlackFideId "24249971"]
[WhiteElo "2679"]
[BlackElo "1815"]
[Result "1-0"]
[Round "02"]
[TimeControl "180+1"]
[Date "2022.05.17"]
[WhiteClock "0:02:39"]
[BlackClock "0:01:02"]

1. d4 {[%clk 0:02:51]}  Nf6 {[%clk 0:02:53]} 2. c4 {[%clk 0:02:50]}  e6 {[%clk 0:02:53]} 3. Nc3 {[%clk 0:02:51]}  Bb4 {[%clk 0:02:51]} 4. a3 {[%clk 0:02:51]}  Bxc3+ {[%clk 0:02:49]} 5. bxc3 {[%clk 0:02:52]}  c5 {[%clk 0:02:47]} 6. f3 {[%clk 0:02:53]}  d6 {[%clk 0:02:42]} 7. e4 {[%clk 0:02:52]}  Nc6 {[%clk 0:02:42]} 8. Ne2 {[%clk 0:02:52]}  b6 {[%clk 0:02:35]} 9. Bg5 {[%clk 0:02:52]}  h6 {[%clk 0:02:32]} 10. Bh4 {[%clk 0:02:52]}  e5 {[%clk 0:02:21]} 11. d5 {[%clk 0:02:51]}  Na5 {[%clk 0:02:18]} 12. Nc1 {[%clk 0:02:51]}  Ba6 {[%clk 0:02:05]} 13. Nb3 {[%clk 0:02:51]}  Bxc4 {[%clk 0:01:41]} 14. Nxa5 {[%clk 0:02:49]}  Bxf1 {[%clk 0:01:41]} 15. Nc6 {[%clk 0:02:49]}  Qd7 {[%clk 0:01:40]} 16. Rxf1 {[%clk 0:02:45]}  g5 {[%clk 0:01:40]} 17. Bf2 {[%clk 0:02:44]}  Nh5 {[%clk 0:01:36]} 18. Be3 {[%clk 0:02:43]}  O-O {[%clk 0:01:29]} 19. g4 {[%clk 0:02:43]}  Nf4 {[%clk 0:01:22]} 20. Bxf4 {[%clk 0:02:43]}  exf4 {[%clk 0:01:21]} 21. h4 {[%clk 0:02:43]}  Rae8 {[%clk 0:01:20]} 22. Kf2 {[%clk 0:02:41]}  gxh4 {[%clk 0:01:18]} 23. Rh1 {[%clk 0:02:41]}  h5 {[%clk 0:01:18]} 24. Rxh4 {[%clk 0:02:41]}  f5 {[%clk 0:01:15]} 25. gxf5 {[%clk 0:02:39]}  Qg7 {[%clk 0:01:12]} 26. Qg1 {[%clk 0:02:39]}  Rf7 {[%clk 0:01:02]} 27. Rxh5 {[%clk 0:02:39]} 1-0


[Site "https://www.chess.com"]

[Event "Titled Tuesday Blitz May 17 Early 2022"]
[White "Shimanov, Aleksandr"]
[Black "Hua, Lefong"]
[WhiteFideId "4198603"]
[BlackFideId "2602253"]
[WhiteElo "2605"]
[BlackElo "2624"]
[Result "1-0"]
[Round "02"]
[TimeControl "180+1"]
[Date "2022.05.17"]
[WhiteClock "0:00:07"]
[BlackClock "0:00:04"]

1. d4 {[%clk 0:03:00]}  Nf6 {[%clk 0:02:59]} 2. Nc3 {[%clk 0:02:59]}  d5 {[%clk 0:02:59]} 3. Bf4 {[%clk 0:02:59]}  g6 {[%clk 0:02:59]} 4. e3 {[%clk 0:02:53]}  Bg7 {[%clk 0:02:59]} 5. h4 {[%clk 0:02:53]}  c6 {[%clk 0:02:59]} 6. Qd2 {[%clk 0:02:45]}  Nbd7 {[%clk 0:02:49]} 7. Nf3 {[%clk 0:02:44]}  h6 {[%clk 0:02:43]} 8. Bd3 {[%clk 0:02:41]}  O-O {[%clk 0:02:36]} 9. O-O-O {[%clk 0:02:39]}  b5 {[%clk 0:02:34]} 10. Ne5 {[%clk 0:02:31]}  Nxe5 {[%clk 0:02:25]} 11. Bxe5 {[%clk 0:02:23]}  a5 {[%clk 0:02:23]} 12. Kb1 {[%clk 0:02:19]}  a4 {[%clk 0:02:23]} 13. a3 {[%clk 0:02:19]}  Qb6 {[%clk 0:02:20]} 14. Na2 {[%clk 0:02:18]}  Ne8 {[%clk 0:01:50]} 15. Bxg7 {[%clk 0:02:08]}  Kxg7 {[%clk 0:01:51]} 16. Nb4 {[%clk 0:01:48]}  Nd6 {[%clk 0:01:46]} 17. f3 {[%clk 0:01:48]}  Bf5 {[%clk 0:01:35]} 18. g4 {[%clk 0:01:45]}  Bxd3 {[%clk 0:01:33]} 19. cxd3 {[%clk 0:01:45]}  e6 {[%clk 0:01:28]} 20. Rc1 {[%clk 0:01:45]}  Rac8 {[%clk 0:01:28]} 21. Rc2 {[%clk 0:01:42]}  Rc7 {[%clk 0:01:28]} 22. Rhc1 {[%clk 0:01:41]}  Rfc8 {[%clk 0:01:29]} 23. Qh2 {[%clk 0:01:35]}  c5 {[%clk 0:01:12]} 24. dxc5 {[%clk 0:01:33]}  Rxc5 {[%clk 0:01:13]} 25. Qe5+ {[%clk 0:01:31]}  Kg8 {[%clk 0:01:13]} 26. h5 {[%clk 0:01:20]}  Rxc2 {[%clk 0:01:05]} 27. Rxc2 {[%clk 0:01:20]}  Rxc2 {[%clk 0:01:04]} 28. Nxc2 {[%clk 0:01:21]}  gxh5 {[%clk 0:00:51]} 29. Qxh5 {[%clk 0:01:16]}  Kg7 {[%clk 0:00:49]} 30. Qe5+ {[%clk 0:01:16]}  Kg8 {[%clk 0:00:49]} 31. Qf6 {[%clk 0:01:14]}  Kh7 {[%clk 0:00:41]} 32. Qe7 {[%clk 0:01:03]}  Kg8 {[%clk 0:00:37]} 33. f4 {[%clk 0:00:58]}  Qc5 {[%clk 0:00:22]} 34. Qf6 {[%clk 0:00:29]}  Kh7 {[%clk 0:00:19]} 35. Qd8 {[%clk 0:00:26]}  Nb7 {[%clk 0:00:12]} 36. Qd7 {[%clk 0:00:23]}  Nd6 {[%clk 0:00:11]} 37. Qe7 {[%clk 0:00:23]}  Kg8 {[%clk 0:00:09]} 38. Qh4 {[%clk 0:00:17]}  Kg7 {[%clk 0:00:08]} 39. Qd8 {[%clk 0:00:16]}  Qc6 {[%clk 0:00:07]} 40. Nd4 {[%clk 0:00:15]}  Qc5 {[%clk 0:00:07]} 41. Qe7 {[%clk 0:00:15]}  Kg8 {[%clk 0:00:05]} 42. f5 {[%clk 0:00:14]}  exf5 {[%clk 0:00:06]} 43. Nxf5 {[%clk 0:00:13]}  Ne4 {[%clk 0:00:05]} 44. dxe4 {[%clk 0:00:13]}  Qc4 {[%clk 0:00:04]} 45. Qe8+ {[%clk 0:00:07]} 1-0


[Site "https://www.chess.com"]

[Event "Titled Tuesday Blitz May 17 Early 2022"]
[White "Svane, Frederik"]
[Black "Vovk, Orest"]
[WhiteFideId "12923044"]
[BlackFideId "14113490"]
[WhiteElo "2459"]
[BlackElo "2203"]
[Result "0-1"]
[Round "02"]
[TimeControl "180+1"]
[Date "2022.05.17"]
[WhiteClock "0:00:02"]
[BlackClock "0:00:04"]

1. e4 {[%clk 0:03:00]}  g5 {[%clk 0:02:55]} 2. d4 {[%clk 0:03:00]}  g4 {[%clk 0:02:52]} 3. Nc3 {[%clk 0:02:50]}  Bg7 {[%clk 0:02:51]} 4. Be3 {[%clk 0:02:50]}  d6 {[%clk 0:02:51]} 5. h3 {[%clk 0:02:51]}  h5 {[%clk 0:02:51]} 6. hxg4 {[%clk 0:02:51]}  hxg4 {[%clk 0:02:52]} 7. Rxh8 {[%clk 0:02:51]}  Bxh8 {[%clk 0:02:53]} 8. Qd2 {[%clk 0:02:51]}  c6 {[%clk 0:02:53]} 9. O-O-O {[%clk 0:02:52]}  Qa5 {[%clk 0:02:53]} 10. Kb1 {[%clk 0:02:50]}  b5 {[%clk 0:02:54]} 11. f3 {[%clk 0:02:50]}  Be6 {[%clk 0:02:48]} 12. d5 {[%clk 0:02:49]}  b4 {[%clk 0:02:39]} 13. Nce2 {[%clk 0:02:43]}  cxd5 {[%clk 0:02:35]} 14. exd5 {[%clk 0:02:44]}  Bf5 {[%clk 0:02:12]} 15. Nd4 {[%clk 0:02:41]}  Bxd4 {[%clk 0:02:03]} 16. Qxd4 {[%clk 0:02:35]}  Nf6 {[%clk 0:01:57]} 17. fxg4 {[%clk 0:02:21]}  Bxg4 {[%clk 0:01:55]} 18. Nf3 {[%clk 0:02:15]}  Nbd7 {[%clk 0:01:47]} 19. Bc4 {[%clk 0:02:12]}  Rc8 {[%clk 0:01:39]} 20. Rh1 {[%clk 0:02:06]}  Nf8 {[%clk 0:01:32]} 21. Bg5 {[%clk 0:02:00]}  Qc5 {[%clk 0:01:22]} 22. Bxf6 {[%clk 0:01:34]}  Qxc4 {[%clk 0:01:20]} 23. Qe3 {[%clk 0:01:23]}  Qxc2+ {[%clk 0:01:17]} 24. Ka1 {[%clk 0:01:23]}  Ng6 {[%clk 0:00:56]} 25. Re1 {[%clk 0:00:52]}  Rc7 {[%clk 0:00:38]} 26. Nh4 {[%clk 0:00:45]}  Nxh4 {[%clk 0:00:34]} 27. Bxh4 {[%clk 0:00:43]}  Bd1 {[%clk 0:00:29]} 28. Bg5 {[%clk 0:00:37]}  f6 {[%clk 0:00:24]} 29. Bf4 {[%clk 0:00:30]}  b3 {[%clk 0:00:14]} 30. Rh1 {[%clk 0:00:27]}  Kf8 {[%clk 0:00:06]} 31. Rh8+ {[%clk 0:00:14]}  Kg7 {[%clk 0:00:06]} 32. Rh1 {[%clk 0:00:07]}  Bh5 {[%clk 0:00:05]} 33. Qg3+ {[%clk 0:00:04]}  Bg6 {[%clk 0:00:05]} 34. Qh4 {[%clk 0:00:02]}  bxa2 {[%clk 0:00:04]} 35. Qh8+ {[%clk 0:00:02]}  Kf7 {[%clk 0:00:04]} 36. Kxa2 {[%clk 0:00:02]}  Qa4# {[%clk 0:00:04]} 0-1


[Site "https://www.chess.com"]

[Event "Titled Tuesday Blitz May 17 Early 2022"]
[White "Yang, Kaiqi"]
[Black "Babazada, Khazar"]
[WhiteFideId "8604398"]
[BlackFideId "13413554"]
[WhiteElo "2373"]
[BlackElo "2406"]
[Result "1-0"]
[Round "02"]
[TimeControl "180+1"]
[Date "2022.05.17"]
[WhiteClock "0:00:10"]
[BlackClock "0:00:07"]

1. d4 {[%clk 0:03:00]}  Nf6 {[%clk 0:02:58]} 2. c4 {[%clk 0:03:00]}  c5 {[%clk 0:02:47]} 3. d5 {[%clk 0:03:00]}  e6 {[%clk 0:02:47]} 4. Nc3 {[%clk 0:02:59]}  exd5 {[%clk 0:02:48]} 5. cxd5 {[%clk 0:03:00]}  d6 {[%clk 0:02:47]} 6. e4 {[%clk 0:03:01]}  g6 {[%clk 0:02:47]} 7. f4 {[%clk 0:03:02]}  Bg7 {[%clk 0:02:47]} 8. Bb5+ {[%clk 0:03:02]}  Nfd7 {[%clk 0:02:44]} 9. a4 {[%clk 0:03:02]}  O-O {[%clk 0:02:37]} 10. Nf3 {[%clk 0:03:02]}  Qc7 {[%clk 0:02:26]} 11. O-O {[%clk 0:03:01]}  a6 {[%clk 0:02:21]} 12. Be2 {[%clk 0:02:45]}  Re8 {[%clk 0:02:12]} 13. Kh1 {[%clk 0:02:43]}  Bxc3 {[%clk 0:02:09]} 14. bxc3 {[%clk 0:02:43]}  Rxe4 {[%clk 0:02:04]} 15. Bd3 {[%clk 0:02:27]}  Nf6 {[%clk 0:02:01]} 16. Bxe4 {[%clk 0:02:16]}  Nxe4 {[%clk 0:02:01]} 17. Ng5 {[%clk 0:02:05]}  Bf5 {[%clk 0:01:44]} 18. g4 {[%clk 0:01:48]}  Nxg5 {[%clk 0:01:41]} 19. gxf5 {[%clk 0:01:44]}  Ne4 {[%clk 0:01:40]} 20. Qf3 {[%clk 0:01:31]}  Qe7 {[%clk 0:01:28]} 21. fxg6 {[%clk 0:01:24]}  hxg6 {[%clk 0:01:29]} 22. c4 {[%clk 0:01:19]}  Nd7 {[%clk 0:01:26]} 23. Ra2 {[%clk 0:01:15]}  Re8 {[%clk 0:01:22]} 24. Rg2 {[%clk 0:01:07]}  Qh4 {[%clk 0:00:58]} 25. Bb2 {[%clk 0:01:00]}  Kf8 {[%clk 0:00:40]} 26. f5 {[%clk 0:00:50]}  g5 {[%clk 0:00:40]} 27. f6 {[%clk 0:00:49]}  Ne5 {[%clk 0:00:37]} 28. Bxe5 {[%clk 0:00:40]}  Rxe5 {[%clk 0:00:38]} 29. a5 {[%clk 0:00:32]}  Qh7 {[%clk 0:00:28]} 30. Qg4 {[%clk 0:00:27]}  Re8 {[%clk 0:00:24]} 31. Kg1 {[%clk 0:00:20]}  Qg6 {[%clk 0:00:21]} 32. Re2 {[%clk 0:00:20]}  Nxf6 {[%clk 0:00:19]} 33. Rxe8+ {[%clk 0:00:19]}  Nxe8 {[%clk 0:00:20]} 34. Qf5 {[%clk 0:00:14]}  Kg7 {[%clk 0:00:16]} 35. Qxg6+ {[%clk 0:00:10]}  Kxg6 {[%clk 0:00:17]} 36. Rb1 {[%clk 0:00:10]}  Nf6 {[%clk 0:00:15]} 37. Rxb7 {[%clk 0:00:10]}  Ne4 {[%clk 0:00:12]} 38. Rb6 {[%clk 0:00:10]}  g4 {[%clk 0:00:10]} 39. Rxa6 {[%clk 0:00:10]}  f5 {[%clk 0:00:10]} 40. Ra8 {[%clk 0:00:10]}  f4 {[%clk 0:00:09]} 41. a6 {[%clk 0:00:10]}  Kg7 {[%clk 0:00:07]} 42. a7 {[%clk 0:00:10]} 1-0


[Site "https://www.chess.com"]

[Event "Titled Tuesday Blitz May 17 Early 2022"]
[White "Bortnyk, Olexandr"]
[Black "Korchmar, Vasiliy"]
[WhiteFideId "14120828"]
[BlackFideId "24131750"]
[WhiteElo "2723"]
[BlackElo "2370"]
[Result "1-0"]
[Round "03"]
[TimeControl "180+1"]
[Date "2022.05.17"]
[WhiteClock "0:00:02"]
[BlackClock "0:00:01"]

1. e4 {[%clk 0:03:00]}  c5 {[%clk 0:02:59]} 2. c3 {[%clk 0:03:00]}  Nf6 {[%clk 0:02:58]} 3. e5 {[%clk 0:03:00]}  Nd5 {[%clk 0:02:59]} 4. d4 {[%clk 0:03:01]}  cxd4 {[%clk 0:02:59]} 5. cxd4 {[%clk 0:03:02]}  e6 {[%clk 0:03:00]} 6. Nf3 {[%clk 0:03:03]}  d6 {[%clk 0:03:00]} 7. Bc4 {[%clk 0:03:03]}  Be7 {[%clk 0:03:00]} 8. O-O {[%clk 0:03:03]}  O-O {[%clk 0:03:00]} 9. Qe2 {[%clk 0:03:04]}  b6 {[%clk 0:02:59]} 10. Nbd2 {[%clk 0:02:55]}  Bb7 {[%clk 0:02:54]} 11. Ne4 {[%clk 0:02:55]}  dxe5 {[%clk 0:02:53]} 12. dxe5 {[%clk 0:02:51]}  Nd7 {[%clk 0:02:40]} 13. Bd2 {[%clk 0:02:26]}  Rc8 {[%clk 0:02:33]} 14. Rac1 {[%clk 0:02:24]}  h6 {[%clk 0:02:10]} 15. Rfd1 {[%clk 0:02:16]}  Nc5 {[%clk 0:01:59]} 16. Ng3 {[%clk 0:02:14]}  Re8 {[%clk 0:01:32]} 17. Bb5 {[%clk 0:01:41]}  Rf8 {[%clk 0:01:22]} 18. Nh5 {[%clk 0:01:35]}  a6 {[%clk 0:01:12]} 19. Bc4 {[%clk 0:01:21]}  b5 {[%clk 0:01:12]} 20. Bxd5 {[%clk 0:01:22]}  Bxd5 {[%clk 0:01:07]} 21. Nd4 {[%clk 0:01:20]}  Ne4 {[%clk 0:00:45]} 22. Rxc8 {[%clk 0:01:07]}  Qxc8 {[%clk 0:00:46]} 23. Be3 {[%clk 0:01:05]}  g6 {[%clk 0:00:34]} 24. Bxh6 {[%clk 0:00:54]}  Rd8 {[%clk 0:00:34]} 25. Nf4 {[%clk 0:00:48]}  Qc4 {[%clk 0:00:23]} 26. Qg4 {[%clk 0:00:45]}  Kh7 {[%clk 0:00:09]} 27. Qh3 {[%clk 0:00:39]}  Kg8 {[%clk 0:00:09]} 28. Qg4 {[%clk 0:00:12]}  Kh7 {[%clk 0:00:09]} 29. Qh3 {[%clk 0:00:12]}  Kg8 {[%clk 0:00:09]} 30. b3 {[%clk 0:00:12]}  Qc3 {[%clk 0:00:09]} 31. Qg4 {[%clk 0:00:04]}  Kh7 {[%clk 0:00:08]} 32. Nfe2 {[%clk 0:00:05]}  Qb2 {[%clk 0:00:05]} 33. Be3 {[%clk 0:00:02]}  Kg7 {[%clk 0:00:03]} 34. h4 {[%clk 0:00:02]}  Rh8 {[%clk 0:00:02]} 35. g3 {[%clk 0:00:02]}  Nc3 {[%clk 0:00:02]} 36. Nxc3 {[%clk 0:00:02]}  Qxc3 {[%clk 0:00:03]} 37. Ne2 {[%clk 0:00:02]}  Qc2 {[%clk 0:00:03]} 38. Nf4 {[%clk 0:00:02]}  Qe4 {[%clk 0:00:03]} 39. Kf1 {[%clk 0:00:01]}  Qh1+ {[%clk 0:00:02]} 40. Ke2 {[%clk 0:00:02]}  Qe4 {[%clk 0:00:02]} 41. Rd4 {[%clk 0:00:02]}  Qc2+ {[%clk 0:00:02]} 42. Bd2 {[%clk 0:00:03]}  Bc6 {[%clk 0:00:02]} 43. Nxe6+ {[%clk 0:00:03]}  fxe6 {[%clk 0:00:02]} 44. Qxe6 {[%clk 0:00:04]}  Re8 {[%clk 0:00:01]} 45. h5 {[%clk 0:00:03]}  gxh5 {[%clk 0:00:01]} 46. Rf4 {[%clk 0:00:02]} 1-0


[Site "https://www.chess.com"]

[Event "Titled Tuesday Blitz May 17 Early 2022"]
[White "Chigaev, Maksim"]
[Black "Gallego Alcaraz, Andres Felipe"]
[WhiteFideId "4108116"]
[BlackFideId "4402669"]
[WhiteElo "2457"]
[BlackElo "2340"]
[Result "1-0"]
[Round "03"]
[TimeControl "180+1"]
[Date "2022.05.17"]
[WhiteClock "0:00:05"]
[BlackClock "0:00:06"]

1. Nf3 {[%clk 0:03:00]}  Nf6 {[%clk 0:02:59]} 2. c4 {[%clk 0:03:01]}  g6 {[%clk 0:02:59]} 3. Nc3 {[%clk 0:03:01]}  d5 {[%clk 0:02:59]} 4. cxd5 {[%clk 0:03:01]}  Nxd5 {[%clk 0:03:00]} 5. Qa4+ {[%clk 0:02:59]}  Bd7 {[%clk 0:02:59]} 6. Qd4 {[%clk 0:02:58]}  Nf6 {[%clk 0:02:56]} 7. g3 {[%clk 0:02:43]}  Bg7 {[%clk 0:02:55]} 8. Bg2 {[%clk 0:02:43]}  O-O {[%clk 0:02:53]} 9. O-O {[%clk 0:02:44]}  Qc8 {[%clk 0:02:30]} 10. Qh4 {[%clk 0:02:43]}  c5 {[%clk 0:02:20]} 11. d3 {[%clk 0:02:44]}  Bc6 {[%clk 0:02:14]} 12. Bh6 {[%clk 0:02:40]}  Nbd7 {[%clk 0:02:12]} 13. Rac1 {[%clk 0:02:40]}  b6 {[%clk 0:02:06]} 14. Bxg7 {[%clk 0:02:32]}  Kxg7 {[%clk 0:02:07]} 15. e4 {[%clk 0:02:32]}  e5 {[%clk 0:02:04]} 16. g4 {[%clk 0:02:25]}  h6 {[%clk 0:02:02]} 17. h3 {[%clk 0:02:24]}  Re8 {[%clk 0:01:50]} 18. Rfd1 {[%clk 0:01:58]}  Nf8 {[%clk 0:01:47]} 19. Qg3 {[%clk 0:01:55]}  Qb8 {[%clk 0:01:37]} 20. h4 {[%clk 0:01:43]}  Bd7 {[%clk 0:01:24]} 21. Bh3 {[%clk 0:01:37]}  g5 {[%clk 0:00:57]} 22. h5 {[%clk 0:00:59]}  N6h7 {[%clk 0:00:41]} 23. Nd5 {[%clk 0:00:57]}  f6 {[%clk 0:00:38]} 24. b4 {[%clk 0:00:57]}  Ne6 {[%clk 0:00:36]} 25. bxc5 {[%clk 0:00:55]}  bxc5 {[%clk 0:00:37]} 26. Rb1 {[%clk 0:00:56]}  Qd6 {[%clk 0:00:36]} 27. Nd2 {[%clk 0:00:51]}  Nf4 {[%clk 0:00:34]} 28. Nc4 {[%clk 0:00:49]}  Qc6 {[%clk 0:00:17]} 29. Kh2 {[%clk 0:00:46]}  Nxd5 {[%clk 0:00:14]} 30. exd5 {[%clk 0:00:46]}  Qxd5 {[%clk 0:00:14]} 31. Bg2 {[%clk 0:00:46]}  Qe6 {[%clk 0:00:13]} 32. Bxa8 {[%clk 0:00:45]}  Rxa8 {[%clk 0:00:14]} 33. Rb7 {[%clk 0:00:45]}  Kh8 {[%clk 0:00:14]} 34. Rdb1 {[%clk 0:00:41]}  Bc6 {[%clk 0:00:14]} 35. Rc7 {[%clk 0:00:32]}  Qd5 {[%clk 0:00:14]} 36. Ne3 {[%clk 0:00:25]}  Qd6 {[%clk 0:00:14]} 37. Rg7 {[%clk 0:00:21]}  Bd7 {[%clk 0:00:12]} 38. Rb7 {[%clk 0:00:15]}  Rd8 {[%clk 0:00:12]} 39. Rg6 {[%clk 0:00:14]}  Bc6 {[%clk 0:00:10]} 40. Rxa7 {[%clk 0:00:13]}  Rd7 {[%clk 0:00:10]} 41. Rxd7 {[%clk 0:00:09]}  Bxd7 {[%clk 0:00:10]} 42. Rxh6 {[%clk 0:00:09]}  Qxd3 {[%clk 0:00:10]} 43. Qf3 {[%clk 0:00:06]}  Qd6 {[%clk 0:00:07]} 44. Qe4 {[%clk 0:00:05]}  f5 {[%clk 0:00:06]} 45. Rxd6 {[%clk 0:00:05]} 1-0


[Site "https://www.chess.com"]

[Event "Titled Tuesday Blitz May 17 Early 2022"]
[White "Deac, Bogdan-Daniel"]
[Black "Todorovic, Bojan"]
[WhiteFideId "1226380"]
[BlackFideId "917087"]
[WhiteElo "2648"]
[BlackElo "2266"]
[Result "1-0"]
[Round "03"]
[TimeControl "180+1"]
[Date "2022.05.17"]
[WhiteClock "0:01:15"]
[BlackClock "0:01:15"]

1. d4 {[%clk 0:03:00]}  d5 {[%clk 0:02:58]} 2. Nf3 {[%clk 0:03:00]}  Bf5 {[%clk 0:02:57]} 3. c4 {[%clk 0:03:00]}  e6 {[%clk 0:02:56]} 4. Nc3 {[%clk 0:03:00]}  c6 {[%clk 0:02:56]} 5. Qb3 {[%clk 0:02:59]}  Qb6 {[%clk 0:02:56]} 6. c5 {[%clk 0:02:59]}  Qc7 {[%clk 0:02:56]} 7. Bf4 {[%clk 0:02:58]}  Qc8 {[%clk 0:02:56]} 8. Nh4 {[%clk 0:02:58]}  Bg4 {[%clk 0:02:52]} 9. h3 {[%clk 0:02:55]}  Bh5 {[%clk 0:02:52]} 10. g4 {[%clk 0:02:55]}  Bg6 {[%clk 0:02:53]} 11. Nxg6 {[%clk 0:02:52]}  hxg6 {[%clk 0:02:53]} 12. e4 {[%clk 0:02:53]}  b6 {[%clk 0:02:34]} 13. exd5 {[%clk 0:02:33]}  exd5 {[%clk 0:02:31]} 14. Nxd5 {[%clk 0:01:48]}  cxd5 {[%clk 0:02:31]} 15. Bb5+ {[%clk 0:01:29]}  Nc6 {[%clk 0:02:30]} 16. cxb6 {[%clk 0:01:27]}  a6 {[%clk 0:02:16]} 17. Bxc6+ {[%clk 0:01:18]}  Qxc6 {[%clk 0:02:15]} 18. b7 {[%clk 0:01:19]}  Rb8 {[%clk 0:01:15]} 19. Bxb8 {[%clk 0:01:18]}  a5 {[%clk 0:01:15]} 20. Bf4 {[%clk 0:01:15]} 1-0


[Site "https://www.chess.com"]